[Event "FIDE CB Open 2022"]
[Site "Ceske Budejovice"]
[Date "2022.07.05"]
[Round "5.18"]
[White "Panjer, Sidney"]
[Black "Placer, Sebastian"]
[Result "1-0"]
[ECO "E04"]
[WhiteElo "2140"]
[BlackElo "2062"]
[Annotator "TA"]
[PlyCount "77"]
[EventDate "2022.07.01"]
[EventType "swiss"]
[EventCountry "CZE"]
[SourceTitle "playchess.com"]
[Source "ChessBase"]
[SourceQuality "1"]
[TimeControl "40/5400+30:1800+30"]

{[%evp 16,77,15,10,80,51,69,72,45,9,15,18,14,10,16,14,17,14,20,-36,-19,-25,7,-69,-71,-72,-64,-50,-39,-33,-11,-10,0,0,0,-11,0,-36,34,39,37,35,39,0,0,0,0,-60,0,-140,-79,-71,-73,-68,-18,-23,0,-107,33,23,31,20,56,42]} 1. Nf3 {[%emt 0:00:05]} d5 {[%emt 0:00:06]} 2. d4 {[%emt 0:00:07]} Nf6 {[%emt 0:00:14]} 3. c4 {[%emt 0:00:11]} e6 {[%emt 0:00:24]} 4. g3 {[%emt 0:00:22]} dxc4 {[%emt 0:00:34]} 5. Qa4+ {[%emt 0:04:50]} Nc6 {[%emt 0:00:37]} 6. Bg2 {[%emt 0:01:10]} Bb4+ {[%emt 0:00:41]} 7. Bd2 {[%emt 0:00:29]} Nd5 {[%emt 0:00:08]} 8. Bxb4 {[%emt 0:09:25]} Ndxb4 {[%emt 0:00:06]} 9. O-O {[%emt 0:13:34]} Bd7 {[%emt 0:30:24] E04: Open Catalan: 5 Nf3.} (9... Rb8 $11) 10. Ne5 {[%emt 0:10:38]} Qe7 {[%emt 0:16:29] Threatens to win with ...Nxe5.} 11. Nxd7 {[%emt 0:18:12]} Qxd7 {[%emt 0:00:05] [#] White is better.} 12. a3 $146 {[%emt 0:00:46]} ({Predecessor:} 12. Rd1 O-O-O 13. Nc3 Nd5 14. Qxc4 Kb8 15. Rac1 h5 16. Ne4 Na5 17. Qd3 b6 18. h4 {1-0 (56) Hagstroem,A (2464)-Schroeder,M (2439) ICCF email 2009}) 12... Nd5 {[%emt 0:00:32]} 13. e3 {[%emt 0:00:49][%mdl 1024] White has compensation.} Nb6 {[%emt 0:00:58]} 14. Qc2 {[%emt 0:00:15]} O-O {[%emt 0:01:05]} 15. Rd1 {[%emt 0:05:44]} Na5 {[%emt 0:02:17]} 16. Nd2 {[%emt 0:01:31]} Qa4 {[%emt 0:01:33]} 17. Qe4 {[%emt 0:07:10]} (17. Rdc1 $11) 17... Nd5 {[%emt 0:01:46]} 18. Rdc1 {[%emt 0:16:13]} b5 {[%emt 0:08:04]} 19. Qc2 {[%emt 0:07:41]} (19. Qb1 $11) 19... Qxc2 $15 {[%emt 0:01:31]} 20. Rxc2 {[%emt 0:00:01]} c6 {[%emt 0:00:41]} 21. Rb1 {[%emt 0:00:27]} Rab8 {[%emt 0:01:59]} 22. b3 {[%emt 0:00:21]} cxb3 {[%emt 0:02:47]} 23. Nxb3 {[%emt 0:00:05]} Nc4 {[%emt 0:00:11]} 24. Ra1 {[%emt 0:01:17]} Rfc8 {[%emt 0:10:00]} 25. Bf1 {[%emt 0:00:27]} Ndb6 {[%emt 0:01:19]} 26. Nc5 {[%emt 0:00:47]} Re8 {[%emt 0:08:15]} (26... a5 $15) 27. Na6 $14 {[%emt 0:00:23]} Rbc8 {[%emt 0:01:04]} 28. a4 {[%emt 0:00:12]} Nd6 {[%emt 0:02:24]} 29. Nb4 {[%emt 0:01:02]} Nxa4 {[%emt 0:01:43]} 30. Nxc6 {[%emt 0:00:21][%cal Of1b5]} a6 {[%emt 0:00:46]} 31. Rac1 {[%emt 0:00:39]} ({White should play} 31. Bd3 $11) 31... Nb6 {[%emt 0:02:49] Pair of Knights!} (31... Kf8 $15) 32. Nb4 {[%emt 0:00:33]} (32. Ra1 $11) 32... a5 {[%emt 0:01:11]} (32... Rxc2 $142 33. Rxc2 a5) 33. Nc6 $17 {[%emt 0:00:40] [#]} Ra8 $1 {[%emt 0:02:30]} 34. Rb2 {[%emt 0:00:31]} b4 {[%emt 0:00:58]} (34... a4 $15 35. Bxb5 a3) 35. Ra1 $1 $11 {[%emt 0:00:27]} Ndc4 {[%emt 0:00:46]} 36. Rc2 {[%emt 0:00:33] [#]} (36. Bxc4 $11 Nxc4 37. Rc2) 36... Nd6 {[%emt 0:00:44]} (36... b3 $1 $17 {[%cal Rb3c2]} 37. Rxc4 Nxc4 38. Bxc4 a4) 37. Rxa5 $14 {[%emt 0:00:22]} Rxa5 {[%emt 0:00:27]} 38. Nxa5 {[%emt 0:00:02]} Rc8 {[%emt 0:00:22]} 39. Rxc8+ {[%emt 0:00:25] Weighted Error Value: White=0.26 (precise) /Black=0.25 (precise)} 1-0

[Event "FIDE CB Open 2022"]
[Site "Ceske Budejovice"]
[Date "2022.07.05"]
[Round "5.19"]
[White "Ondrejat, Miroslav"]
[Black "Hofstadler, Mario"]
[Result "1/2-1/2"]
[ECO "A39"]
[WhiteElo "1903"]
[BlackElo "2123"]
[Annotator "TA"]
[PlyCount "70"]
[EventDate "2022.07.01"]
[EventType "swiss"]
[EventCountry "CZE"]
[SourceTitle "playchess.com"]
[Source "ChessBase"]
[SourceQuality "1"]
[TimeControl "40/5400+30:1800+30"]

{[%evp 18,70,32,22,45,39,47,41,43,0,28,10,27,13,18,0,22,1,10,9,15,0,1,0,0,-47,-46,-40,-22,-20,-8,-8,-8,-14,0,-43,-35,-37,0,-44,0,0,8,0,0,0,39,42,118,15,68,59,45,0,67]} 1. Nf3 {[%emt 0:00:08]} Nf6 {[%emt 0:00:34]} 2. c4 {[%emt 0:00:20]} g6 {[%emt 0:06:26]} 3. Nc3 {[%emt 0:01:21]} c5 {[%emt 0:05:53]} 4. g3 {[%emt 0:03:58]} Nc6 {[%emt 0:00:18]} 5. Bg2 {[%emt 0:00:03]} Bg7 {[%emt 0:00:18]} 6. O-O {[%emt 0:00:05]} O-O {[%emt 0:00:11]} 7. d4 {[%emt 0:06:08]} cxd4 {[%emt 0:03:30]} 8. Nxd4 {[%emt 0:00:05]} Nxd4 {[%emt 0:08:12] 8...Qa5 deserves study.} 9. Qxd4 {[%emt 0:05:35]} d6 {[%emt 0:00:28]} 10. Bg5 {[%emt 0:00:52]} a6 {[%emt 0:22:43] A39: Symmetrical English vs ...g6: 4 Bg2 Bg7 5 Nf3 Nf6 6 0-0 0-0 7 d4.} 11. Qd2 {[%emt 0:04:38]} Rb8 {[%emt 0:07:38]} 12. a4 {[%emt 0:16:09]} Be6 {[%emt 0:01:39] [#] White is slightly better.} 13. Nd5 $146 {[%emt 0:01:42]} ({Predecessor:} 13. b3 Re8 14. Rab1 Nd7 15. Rfc1 a5 16. e4 Nc5 17. Nb5 b6 18. Re1 {½-½ (35) Romm,M (2437)-Matyukhin,S (2504) ICCF email 2017}) 13... Bxd5 {[%emt 0:01:39]} 14. cxd5 {[%emt 0:01:25]} Qd7 {[%emt 0:09:25]} 15. Rfc1 {[%emt 0:09:09]} Rfc8 {[%emt 0:01:09]} 16. Qb4 {[%emt 0:00:59]} (16. a5 {seems wilder.} Qf5 17. Bf4 h6 18. Bxh6 Bxh6 19. Qxh6 Qxf2+ 20. Kxf2 Ng4+ 21. Kf3) 16... Kf8 {[%emt 0:08:07]} 17. Be3 {[%emt 0:09:38]} Rxc1+ {[%emt 0:02:56]} 18. Rxc1 {[%emt 0:00:29]} Rc8 {[%emt 0:00:14]} 19. Rxc8+ {[%emt 0:11:28]} Qxc8 {[%emt 0:00:06]} 20. h4 {[%emt 0:01:00]} Qc7 {[%emt 0:03:55]} 21. Qc3 {[%emt 0:03:00]} (21. Bd2 $11 {was preferrable.}) 21... Qxc3 $1 $15 {[%emt 0:01:45]} 22. bxc3 {[%emt 0:00:01][%mdl 4096] Endgame KBB-KBN} Nd7 {[%emt 0:00:27]} 23. c4 {[%emt 0:02:32]} Ke8 {[%emt 0:00:20]} 24. f4 {[%emt 0:02:29]} Bc3 {[%emt 0:00:53]} 25. Bh3 {[%emt 0:03:20]} Ba5 {[%emt 0:04:45]} 26. Bxd7+ {[%emt 0:04:39]} Kxd7 $11 {[%emt 0:00:21] KB-KB} 27. Kf2 {[%emt 0:00:11]} Kc7 {[%emt 0:01:16]} 28. Kf3 {[%emt 0:01:33]} Bb6 {[%emt 0:00:53] [#] ...Bxe3 is the strong threat.} 29. Bd2 {[%emt 0:00:03]} Bd4 {[%emt 0:03:31]} 30. Ba5+ {[%emt 0:00:52]} Bb6 {[%emt 0:01:38]} 31. Bc3 {[%emt 0:01:05]} Kb8 {[%emt 0:03:23]} 32. e4 {[%emt 0:00:51]} Ka7 {[%emt 0:00:28] [#]} (32... Bc5 $14) 33. Be1 {[%emt 0:05:13]} ({White should play} 33. Kg4 $1 $16) 33... Bc5 {[%emt 0:01:07]} (33... Bd4 $11) 34. Ba5 {[%emt 0:00:08]} Bb6 {[%emt 0:00:05] Prevents Bd8.} 35. Be1 {[%emt 0:00:06]} Bc5 {[%emt 0:00:52] Weighted Error Value: White=0.21 (precise) /Black=0.16 (very precise)} 1/2-1/2

[Event "FIDE CB Open 2022"]
[Site "Ceske Budejovice"]
[Date "2022.07.05"]
[Round "5.20"]
[White "Borkovec, Milan"]
[Black "Simecek, Bohumil"]
[Result "0-1"]
[ECO "C02"]
[WhiteElo "2188"]
[BlackElo "2059"]
[Annotator "TA"]
[PlyCount "52"]
[EventDate "2022.07.01"]
[EventType "swiss"]
[EventCountry "CZE"]
[SourceTitle "playchess.com"]
[Source "ChessBase"]
[SourceQuality "1"]
[TimeControl "40/5400+30:1800+30"]

{[%evp 14,52,-2,0,0,-7,14,-6,0,1,106,108,113,108,116,14,43,37,77,77,95,0,75,4,-47,-305,-316,-317,-316,-789,-785,-755,-677,-768,-729,-1418,-1420,-1272,-1179,-29994,-29995]} 1. e4 {[%emt 0:00:31]} e6 {[%emt 0:02:11]} 2. d4 {[%emt 0:00:07]} d5 {[%emt 0:00:10]} 3. e5 {[%emt 0:00:35]} c5 {[%emt 0:00:50]} 4. c3 {[%emt 0:00:07]} Nc6 {[%emt 0:00:12]} 5. Nf3 {[%emt 0:00:06]} Bd7 {[%emt 0:00:13]} 6. dxc5 {[%emt 0:06:42]} Bxc5 {[%emt 0:01:48]} 7. Bd3 {[%emt 0:00:10]} Nge7 {[%emt 0:04:58]} 8. O-O {[%emt 0:00:17] The main line 8.0-0 scores better than 8.Bf4.} Ng6 {[%emt 0:08:42] C02: French: Advance Variation.} 9. Qe2 {[%emt 0:06:16]} Qb6 {[%emt 0:04:54]} 10. h4 {[%emt 0:09:29][%cal Bh2h4,Bh4h5][%mdl 32]} Qc7 {[%emt 0:04:35][%cal Rc6e5] The position is equal.} 11. Re1 {[%emt 0:01:40] [#]} f5 $146 {[%emt 0:24:47]} (11... f6 $1 $11) ({Predecessor:} 11... f6 12. c4 dxc4 13. Bxg6+ hxg6 14. Qxc4 Nxe5 15. Nxe5 fxe5 16. Be3 Rc8 17. Qg4 O-O {1-0 (35) Bodnaruk,A (2434)-Goltseva,E (2253) Moscow 2018}) 12. h5 $16 {[%emt 0:15:17]} Nge7 {[%emt 0:02:15]} 13. b4 {[%emt 0:06:54]} Bb6 {[%emt 0:00:09]} 14. Bg5 {[%emt 0:01:29]} (14. h6 $16) 14... a6 {[%emt 0:05:33]} (14... h6 $5 {[%cal Rh6g5]} 15. Bc1 a6 $14) 15. h6 {[%emt 0:05:14]} Rg8 {[%emt 0:03:34]} 16. hxg7 {[%emt 0:00:10]} Rxg7 {[%emt 0:00:04] [#]} 17. Bf6 {[%emt 0:00:14]} (17. a4 $1 $16) 17... Rg6 {[%emt 0:04:29]} (17... Rg4 $11 18. Nh2 Rg6) 18. Nh4 {[%emt 0:01:29]} (18. Na3 $16) 18... Rg4 $1 $11 {[%emt 0:01:54] aiming for ...Ng8.} 19. a4 $2 {[%emt 0:01:38][%mdl 8192] This move loses the game for White.} ({White has to play} 19. Nd2 $15) 19... Ng8 $19 {[%emt 0:18:11][%cal Be7g8,Bg8f6,Bf6g4][%mdl 32]} 20. Nxf5 {[%emt 0:02:10]} exf5 {[%emt 0:00:57]} 21. e6 $2 {[%emt 0:00:40]} (21. a5 Ba7 22. b5 axb5 23. Na3 Nxf6 24. Nxb5 Qxe5 25. Qxe5+ Nxe5 26. Rxe5+ Kd8 27. Nxa7 Rxa7 28. f3) 21... Nxf6 {[%emt 0:02:46]} 22. exd7+ {[%emt 0:01:09]} Kf8 {[%emt 0:00:27] [#] White must now prevent ...Qg3.} 23. Qe6 {[%emt 0:06:59]} Kg7 {[%emt 0:01:24] ( -> ...Qg3)} 24. Bxf5 {[%emt 0:00:06]} Qg3 {[%emt 0:02:17][%csl Gg4][%cal Rg3g2]} 25. Bxg4 {[%emt 0:00:41]} Bxf2+ {[%emt 0:00:17]} 26. Kh1 {[%emt 0:00:28]} Nxg4 {[%emt 0:01:25] Weighted Error Value: White=1.18/Black=0.27 (precise)} 0-1

[Event "FIDE CB Open 2022"]
[Site "Ceske Budejovice"]
[Date "2022.07.05"]
[Round "5.21"]
[White "Chval, Zdenek"]
[Black "Walek, Petr"]
[Result "0-1"]
[ECO "B35"]
[WhiteElo "2063"]
[BlackElo "2237"]
[Annotator "TA"]
[PlyCount "62"]
[EventDate "2022.07.01"]
[EventType "swiss"]
[EventCountry "CZE"]
[SourceTitle "playchess.com"]
[Source "ChessBase"]
[SourceQuality "1"]
[TimeControl "40/5400+30:1800+30"]

{[%evp 16,62,0,-272,-266,-268,-273,-273,-271,-277,-247,-267,-208,-211,-200,-201,-206,-203,-204,-216,-173,-230,-218,-232,-212,-225,-162,-216,-168,-268,-255,-249,-241,-243,-231,-273,-261,-301,-293,-327,-333,-323,-323,-363,-357,-390,-383,-417,-410]} 1. e4 {[%emt 0:00:15]} c5 {[%emt 0:00:05]} 2. Nf3 {[%emt 0:00:02]} g6 {[%emt 0:00:23]} 3. d4 {[%emt 0:00:05]} cxd4 {[%emt 0:00:04]} 4. Nxd4 {[%emt 0:00:04]} Nc6 {[%emt 0:00:10]} 5. Nc3 {[%emt 0:01:27]} Bg7 {[%emt 0:00:41]} 6. Be3 {[%emt 0:00:29]} Nf6 {[%emt 0:00:56]} 7. Bc4 {[%emt 0:03:19]} O-O {[%emt 0:02:25]} 8. f3 {[%emt 0:02:18]} Qb6 {[%emt 0:03:47]} 9. Qd3 $2 {[%emt 0:24:04][%mdl 8192] [#]} (9. Bb3 $11 {and White stays safe.}) 9... Ne5 $19 {[%emt 0:10:59] B35: Sicilian: Accelerated Dragon with 5 Nc3: main line.} 10. Qe2 {[%emt 0:01:35]} Qxb2 {[%emt 0:00:46]} 11. Kd2 {[%emt 0:01:37]} Qb4 {[%emt 0:05:39] Black has a decisive advantage.} 12. Bb3 {[%emt 0:01:03]} Nc6 {[%emt 0:07:40]} ({Not} 12... Bh6 13. Ndb5 Bxe3+ 14. Qxe3 $17) 13. Qb5 {[%emt 0:07:03] [#]} Nxe4+ $146 {[%emt 0:02:39]} ({Predecessor:} 13... Qd6 14. e5 Nxe5 15. Rad1 Nc6 16. Ke2 Nxd4+ 17. Bxd4 Qc6 18. Qd3 d6 19. Kf2 Be6 {0-1 (33) Wagner,G (1688)-Reddy,A (1672) Bloemfontein 2016}) 14. fxe4 {[%emt 0:00:37]} Bxd4 {[%emt 0:00:08] Dancing on a razor blade.} 15. Qxb4 {[%emt 0:00:51]} Bxe3+ {[%emt 0:00:06]} 16. Kxe3 {[%emt 0:00:08]} Nxb4 {[%emt 0:00:04]} 17. Nd5 {[%emt 0:01:33]} Nc6 {[%emt 0:08:11]} 18. Rhf1 {[%emt 0:00:48]} (18. Ba4 $142) 18... Kg7 {[%emt 0:00:51]} 19. Ba4 {[%emt 0:02:03]} Rb8 {[%emt 0:08:45]} 20. Rab1 {[%emt 0:00:40]} e6 {[%emt 0:09:59]} 21. Nf6 {[%emt 0:01:33]} (21. Bxc6 $142 dxc6 22. Nf6) 21... Rd8 {[%emt 0:02:51]} 22. Ng4 {[%emt 0:04:43]} (22. Bxc6 {is a better defense.} dxc6 23. e5) 22... h5 {[%emt 0:04:57]} 23. Bxc6 {[%emt 0:01:53]} hxg4 {[%emt 0:00:11]} ({Worse is} 23... dxc6 24. Ne5 Rf8 25. Nxc6 $17) 24. Rfd1 {[%emt 0:01:45]} Kf6 {[%emt 0:03:09]} 25. Rd2 {[%emt 0:05:25]} Ke7 {[%emt 0:01:20]} 26. Ba4 {[%emt 0:00:27]} d6 {[%emt 0:02:21][%cal Bd7d6,Bd6d5][%mdl 32]} 27. Rbd1 {[%emt 0:03:41]} e5 {[%emt 0:05:15]} 28. Bb3 {[%emt 0:01:32]} Be6 {[%emt 0:01:10]} 29. Rf2 {[%emt 0:01:00]} f5 {[%emt 0:03:35] Black is winning.} 30. g3 {[%emt 0:00:13]} Rbc8 {[%emt 0:01:30]} 31. Rdf1 {[%emt 0:00:47]} d5 {[%emt 0:01:32] Weighted Error Value: White=0.46/Black=0.14 (very precise)} 0-1

[Event "FIDE CB Open 2022"]
[Site "Ceske Budejovice"]
[Date "2022.07.05"]
[Round "5.22"]
[White "Hlavac, Rudolf"]
[Black "Hiermann, Dietmar"]
[Result "1/2-1/2"]
[ECO "C91"]
[WhiteElo "1931"]
[BlackElo "2224"]
[Annotator "TA"]
[PlyCount "70"]
[EventDate "2022.07.01"]
[EventType "swiss"]
[EventCountry "CZE"]
[SourceTitle "playchess.com"]
[Source "ChessBase"]
[SourceQuality "1"]
[TimeControl "40/5400+30:1800+30"]

{[%evp 23,70,56,69,-11,26,35,48,52,86,73,88,77,100,104,109,85,110,104,112,117,122,102,107,84,111,111,143,72,142,133,131,108,135,140,154,152,162,123,148,149,215,199,258,189,265,261,401,219,236]} 1. e4 {[%emt 0:00:56]} e5 {[%emt 0:00:01]} 2. Nf3 {[%emt 0:00:11]} Nc6 {[%emt 0:00:05]} 3. Bb5 {[%emt 0:00:21]} a6 {[%emt 0:00:02]} 4. Ba4 {[%emt 0:00:14]} b5 {[%emt 0:00:24]} 5. Bb3 {[%emt 0:00:16]} Bb7 {[%emt 0:02:04]} 6. c3 {[%emt 0:04:21]} Be7 {[%emt 0:00:29]} 7. O-O {[%emt 0:00:18]} Nf6 {[%emt 0:00:21]} 8. Re1 {[%emt 0:00:37]} O-O {[%emt 0:00:07]} 9. d4 {[%emt 0:01:07]} d6 {[%emt 0:00:14]} 10. Nbd2 {[%emt 0:02:07][%cal Bb1d2,Bd2f1,Bf1g3][%mdl 32]} h6 {[%emt 0:00:15]} 11. Nf1 {[%emt 0:00:20]} Re8 {[%emt 0:00:10]} 12. Ng3 {[%emt 0:01:31]} Bf8 {[%emt 0:00:09]} 13. d5 {[%emt 0:03:19] C91: Closed Ruy Lopez: 7...d6 8 c3 0-0 9 d4.} ({White should try} 13. Bc2 $14) 13... Ne7 {[%emt 0:00:15]} 14. Nh4 {[%emt 0:01:10] [#]} Bc8 $146 {[%emt 0:01:24]} ({Predecessor:} 14... g6 15. a4 Qd7 16. Qf3 Nh7 17. Be3 Bg7 18. Qe2 Rf8 19. Qd2 h5 20. h3 Bf6 {1-0 (52) Lei,T (2528)-Zawadzka,J (2424) Riadh 2017}) 15. h3 {[%emt 0:00:40] White is slightly better.} Ng6 {[%emt 0:07:09]} 16. Nxg6 {[%emt 0:01:35]} fxg6 {[%emt 0:00:04]} 17. Be3 {[%emt 0:02:46]} g5 {[%emt 0:03:35]} 18. f3 {[%emt 0:07:35] Prevents g4.} Bd7 {[%emt 0:01:05]} 19. Rc1 {[%emt 0:03:06]} Be7 {[%emt 0:03:24]} 20. Qd2 {[%emt 0:01:06]} Rf8 {[%emt 0:00:40]} 21. c4 {[%emt 0:02:03]} Kh7 {[%emt 0:06:20]} 22. cxb5 {[%emt 0:11:29]} axb5 {[%emt 0:02:15]} 23. Rc2 {[%emt 0:00:32]} g6 {[%emt 0:06:37]} 24. Rec1 {[%emt 0:05:47]} Ne8 {[%emt 0:00:23]} 25. a3 {[%emt 0:03:55]} (25. Nh1 $142) 25... Qc8 {[%emt 0:00:55]} ({Better is} 25... h5) 26. Kh2 {[%emt 0:03:10]} Bd8 {[%emt 0:00:15]} 27. Rc3 {[%emt 0:01:52] White is more active.} Qb7 {[%emt 0:01:07]} 28. Bd1 {[%emt 0:00:20]} Rf7 {[%emt 0:02:05]} 29. Be2 {[%emt 0:02:04]} Nf6 {[%emt 0:04:46]} 30. Qc2 {[%emt 0:02:28]} b4 {[%emt 0:06:16]} 31. axb4 {[%emt 0:05:41]} Ba4 {[%emt 0:02:05] Against b5} (31... h5 $16 32. Bxg5 Nxd5 33. exd5 Bxg5) 32. Qd2 $18 {[%emt 0:00:47][%cal Ob4b5] [#] b5! is the strong threat.} Be8 {[%emt 0:06:03] Against b5} (32... Bb5 $142 33. Ra3 Bxe2) 33. Rb3 {[%emt 0:08:34]} Nd7 {[%emt 0:02:14]} (33... Bb5 $142 34. Ra3 Bxe2) 34. Ra3 {[%emt 0:03:38]} Rb8 {[%emt 0:00:28]} (34... Nf6 {keeps fighting.} 35. b5 Nd7) 35. b5 {[%emt 0:01:07]} (35. Ra7 $142 Qxb4 36. Qxb4 Rxb4 37. Ra8) 35... Nb6 {[%emt 0:01:05] Weighted Error Value: White=0.25 (precise) /Black=0.33} 1/2-1/2

[Event "FIDE CB Open 2022"]
[Site "Ceske Budejovice"]
[Date "2022.07.05"]
[Round "5.23"]
[White "Vltavsky, Vladimir"]
[Black "Tsifanskaya, Ludmila A"]
[Result "1-0"]
[ECO "B22"]
[WhiteElo "2106"]
[BlackElo "1941"]
[Annotator "TA"]
[PlyCount "93"]
[EventDate "2022.07.01"]
[EventType "swiss"]
[EventCountry "CZE"]
[SourceTitle "playchess.com"]
[Source "ChessBase"]
[SourceQuality "1"]
[TimeControl "40/5400+30:1800+30"]

{[%evp 17,93,0,32,-12,-14,-10,0,0,14,20,21,13,10,-10,-5,-11,-10,-18,-8,-6,-11,-32,-34,-38,-24,-49,-47,-78,-60,-64,-73,-68,-56,-76,-60,-60,-60,-57,-77,-65,-60,-82,-70,-195,-91,-89,-77,-104,-44,-42,-52,-49,0,0,60,52,54,0,0,7,88,95,142,125,133,126,135,131,337,355,728,728,694,678,899,898,942,927]} 1. e4 {[%emt 0:05:23]} c5 {[%emt 0:00:24]} 2. c3 {[%emt 0:00:09]} Nf6 {[%emt 0:00:08]} 3. e5 {[%emt 0:00:03]} Nd5 {[%emt 0:00:07]} 4. d4 {[%emt 0:00:22]} cxd4 {[%emt 0:00:06]} 5. cxd4 {[%emt 0:00:23]} Nc6 {[%emt 0:03:33]} 6. Nf3 {[%emt 0:04:05]} g6 {[%emt 0:01:03]} 7. Bc4 {[%emt 0:02:04]} Nb6 {[%emt 0:00:01]} 8. Bb3 {[%emt 0:00:06]} Bg7 {[%emt 0:00:11]} 9. O-O {[%emt 0:02:23]} O-O {[%emt 0:04:30]} 10. Qe2 {[%emt 0:01:55] B22: Sicilian: 2 c3.} (10. a4 $5 {[%cal Ra4a5]} Na5 11. Ba2 $11) 10... d6 {[%emt 0:03:01]} 11. h3 {[%emt 0:00:24] Prevents Bg4.} dxe5 {[%emt 0:06:05]} 12. dxe5 {[%emt 0:02:47] The position is equal.} Nd4 {[%emt 0:00:53]} 13. Nxd4 {[%emt 0:00:09]} Qxd4 {[%emt 0:00:02]} 14. Re1 {[%emt 0:01:03]} Be6 {[%emt 0:05:42]} 15. Nd2 {[%emt 0:08:54][%cal Bb1d2,Bd2b3,Bb3a5,Ba5c6,Bc6d4,Bd4b5,Bb5d6][%mdl 32]} Bxb3 {[%emt 0:05:20]} 16. Nxb3 {[%emt 0:00:16] [#]} Qc4 $146 {[%emt 0:00:52]} ({Predecessor:} 16... Qd5 17. Bf4 Rfd8 18. Bg5 Nc4 19. Bxe7 Re8 20. Rad1 Qe6 21. Nd4 Qa6 22. b3 Rxe7 23. Qxc4 Qxc4 24. bxc4 Bxe5 {½-½ (28) Yagupov,I (2435)-Dolinskij,B (2210) Moscow 1996}) 17. Bg5 {[%emt 0:00:30]} Qxe2 {[%emt 0:01:26]} 18. Rxe2 {[%emt 0:00:36]} Nd5 {[%emt 0:05:57]} 19. Rd1 {[%emt 0:01:01]} e6 {[%emt 0:00:40]} 20. Na5 {[%emt 0:08:04]} h6 {[%emt 0:02:03]} 21. Bh4 {[%emt 0:01:08]} b6 {[%emt 0:03:09]} 22. Nc6 {[%emt 0:03:33]} g5 {[%emt 0:00:15]} 23. Bg3 {[%emt 0:05:20]} Kh7 {[%emt 0:02:35]} 24. Nd4 {[%emt 0:15:20]} Rac8 {[%emt 0:04:37]} 25. h4 {[%emt 0:07:10]} Rc4 {[%emt 0:05:34]} 26. hxg5 {[%emt 0:01:33]} hxg5 {[%emt 0:00:03]} 27. Nb5 {[%emt 0:02:22]} Kg6 {[%emt 0:05:19]} 28. Nd6 {[%emt 0:00:30] Against Rfc8} Rc6 {[%emt 0:01:24]} 29. Kf1 {[%emt 0:05:59]} Rh8 {[%emt 0:01:56][%cal Rh8h1]} 30. Ke1 {[%emt 0:01:02] [#]} (30. Kg1 $15) 30... Rh1+ {[%emt 0:00:21]} (30... Bf8 $1 $19 {and Black stays clearly on top. Threatens to win with ...f5.} 31. f3 f5) 31. Kd2 $17 {[%emt 0:00:04]} Rxd1+ {[%emt 0:00:07]} 32. Kxd1 {[%emt 0:00:04]} Nf4 {[%emt 0:05:55]} (32... a6 $17) 33. Bxf4 $15 {[%emt 0:04:08]} gxf4 {[%emt 0:00:03][%mdl 4096] Endgame KRB-KRN} 34. Nb5 {[%emt 0:01:12]} Rc5 {[%emt 0:02:16]} (34... a5 $15) 35. Nxa7 $11 {[%emt 0:00:19]} Bxe5 {[%emt 0:01:09]} ({Black should play} 35... Rd5+ $11 36. Ke1 Bxe5) 36. b4 $1 $14 {[%emt 0:00:46]} Rd5+ {[%emt 0:02:23]} 37. Kc2 {[%emt 0:00:13]} (37. Rd2 $1 $14) 37... Bd6 $11 {[%emt 0:02:28]} 38. Nc6 {[%emt 0:00:30]} Rh5 {[%emt 0:05:55]} (38... Kf5 $11) 39. a4 $16 {[%emt 0:01:55]} f3 {[%emt 0:01:37]} (39... Rh1 $142) 40. gxf3 {[%emt 0:00:20]} Rh3 {[%emt 0:00:27]} 41. Kb3 {[%emt 0:32:46]} Rxf3+ {[%emt 0:36:12]} 42. Kc4 {[%emt 0:00:07]} Rf4+ $2 {[%emt 0:00:31] [#]} (42... Rf5 $16 {is a better defense.} 43. Rd2 Bf4) 43. Kb5 $18 {[%emt 0:00:09]} Kg5 $2 {[%emt 0:04:52]} (43... Bc7 44. Ka6 Kf6) 44. Rb2 {[%emt 0:00:25] White is clearly winning.} Bc7 {[%emt 0:00:33]} 45. Ka6 {[%emt 0:00:15]} Rc4 {[%emt 0:00:43]} 46. Kb7 {[%emt 0:00:19]} Bd6 {[%emt 0:02:12]} 47. Kxb6 {[%emt 0:00:17] Weighted Error Value: White=0.11 (very precise) /Black=0.28 (precise)} 1-0